fUSD/lending_fUSD_20260601
["ID","MTS","AMOUNT","RATE_DAILY","PERIOD"]
[423583355,1780249856000,-1590.0,0.00033768,11]
[423583354,1780249856000,-481.23555062,0.00033753,2]
[423583360,1780249856000,-1169.03125486,0.00033893,2]
[423583351,1780249856000,-444.0,0.000337,30]
[423583350,1780249856000,-1199.0,0.000337,30]
[423583357,1780249856000,-242.17,0.00033826,7]
[423583429,1780249857000,-575.08,0.00034361,2]
[423583427,1780249857000,-575.08,0.00034351,2]
[423583436,1780249857000,-407.0,0.00034453,2]
[423583418,1780249857000,-1474.09,0.00034237,7]
[423583435,1780249857000,-400.0,0.00034453,2]
[423583426,1780249857000,-575.08,0.00034351,2]
[423583434,1780249857000,-400.0,0.00034453,2]
[423583425,1780249857000,-284.48,0.00034351,2]
[423583428,1780249857000,-575.08,0.00034351,2]
[423583430,1780249857000,-575.08,0.00034361,2]
[423583437,1780249857000,-407.0,0.00034453,2]
[423583431,1780249857000,-575.08,0.00034362,2]
[423583432,1780249857000,-575.09,0.00034362,2]
[423583441,1780249857000,-150.0,0.00034453,2]
[423583439,1780249857000,-150.0,0.00034453,2]
[423583440,1780249857000,-150.0,0.00034453,2]
[423583449,1780249857000,-2904.16,0.00034544,60]
[423583438,1780249857000,-407.0,0.00034453,2]
[423583448,1780249857000,-641.71,0.00034544,60]
[423583446,1780249857000,-304.37,0.00034544,60]
[423583442,1780249857000,-2277.25,0.000345,120]
[423583450,1780249857000,-6852.15,0.00034544,60]
[423583447,1780249857000,-1755.05,0.00034544,60]
[423583443,1780249857000,-547.38,0.000345,30]
[423583444,1780249857000,-5000.0,0.000345,14]
[423583416,1780249857000,-509.31855336,0.00034223,2]
[423583433,1780249857000,-400.0,0.00034453,2]
[423583419,1780249857000,-2000.0,0.00034247,30]
[423583398,1780249857000,-1074.35470133,0.00033937,2]
[423583415,1780249857000,-188.04,0.000342,21]
[423583445,1780249857000,-207.11,0.00034521,120]
[423583399,1780249857000,-1060.99743393,0.00033963,2]
[423583392,1780249857000,-1239.57537165,0.00033917,2]
[423583393,1780249857000,-1171.04920763,0.00033917,2]
[423583396,1780249857000,-1138.11846053,0.00033937,2]
[423583395,1780249857000,-1656.70393839,0.00033937,2]
[423583394,1780249857000,-1097.46862593,0.00033917,2]
[423583397,1780249857000,-1214.44964657,0.00033937,2]
[423583401,1780249857000,-247.37,0.00033993,7]
[423583411,1780249857000,-9056.2,0.00034137,40]
[423583403,1780249857000,-213.4612072,0.00034,120]
[423583402,1780249857000,-156.74182126,0.00033999,2]
[423583409,1780249857000,-7764.55,0.0003411,30]
[423583424,1780249857000,-575.08,0.00034351,2]
[423583400,1780249857000,-350.0,0.00033973,5]
[423583405,1780249857000,-800.0,0.00034,3]
[423583408,1780249857000,-656.0,0.00034079,9]
[423583404,1780249857000,-750.0,0.00034,2]
[423583410,1780249857000,-502.82253,0.00034136,120]
[423583407,1780249857000,-500.0,0.00034032,60]
[423583420,1780249857000,-244.46,0.00034328,7]
[423583417,1780249857000,-2105.85,0.00034237,7]
[423583421,1780249857000,-390.89,0.0003435,2]
[423583423,1780249857000,-395.93,0.00034351,2]
[423583413,1780249857000,-842.8,0.00034182,7]
[423583412,1780249857000,-253.94,0.00034161,7]
[423583414,1780249857000,-150.0,0.0003419,2]
[423583422,1780249857000,-575.08,0.00034351,2]
[423583406,1780249857000,-1300.0,0.00034032,60]
[423583462,1780249857000,-1144.0,0.00034699,30]
[423583455,1780249857000,-539.0,0.00034656,30]
[423583454,1780249857000,-656.0,0.00034613,10]
[423583486,1780249857000,-649.601898,0.000349,7]
[423583484,1780249857000,-649.601898,0.000349,7]
[423583490,1780249857000,-518.696371,0.000349,7]
[423583494,1780249857000,-300.0,0.000349,12]
[423583489,1780249857000,-151.0,0.000349,7]
[423583492,1780249857000,-181.538058,0.000349,7]
[423583491,1780249857000,-151.0,0.000349,7]
[423583497,1780249857000,-1334.460671,0.000349,7]
[423583495,1780249857000,-1334.460671,0.000349,7]
[423583493,1780249857000,-518.696371,0.000349,7]
[423583498,1780249857000,-151.0,0.000349,7]
[423583496,1780249857000,-1836.785998,0.000349,7]
[423583499,1780249857000,-1836.785998,0.000349,7]
[423583510,1780249857000,-151.0,0.000349,7]
[423583501,1780249857000,-151.0,0.000349,7]
[423583500,1780249857000,-1334.460671,0.000349,7]
[423583502,1780249857000,-1836.785998,0.000349,7]
[423583503,1780249857000,-1334.460671,0.000349,7]
[423583504,1780249857000,-1836.785998,0.000349,7]
[423583508,1780249857000,-151.0,0.000349,7]
[423583505,1780249857000,-151.0,0.000349,7]
[423583506,1780249857000,-151.0,0.000349,7]
[423583509,1780249857000,-151.0,0.000349,7]
[423583507,1780249857000,-151.0,0.000349,7]
[423583453,1780249857000,-154.9,0.0003459,30]
[423583511,1780249857000,-151.0,0.000349,7]
[423583513,1780249857000,-1731.622793,0.000349,7]
[423583485,1780249857000,-649.601898,0.000349,7]
[423583483,1780249857000,-649.601898,0.000349,7]
[423583512,1780249857000,-151.0,0.000349,7]
[423583481,1780249857000,-1406.279124,0.000349,7]
[423583482,1780249857000,-1406.279124,0.000349,7]
[423583452,1780249857000,-916.96980452,0.00034589,30]
[423583457,1780249857000,-1399.0,0.00034676,30]
[423583451,1780249857000,-468.89908972,0.00034557,2]
[423583458,1780249857000,-535.0,0.00034699,30]
[423583463,1780249857000,-157.0,0.000347,30]
[423583461,1780249857000,-1421.0,0.00034699,30]
[423583459,1780249857000,-684.0,0.00034699,30]
[423583460,1780249857000,-343.0,0.00034699,30]
[423583475,1780249857000,-15854.4958949,0.00034899,7]
[423583469,1780249857000,-1356.0,0.00034719,2]
[423583474,1780249857000,-150.0,0.00034834,2]
[423583470,1780249857000,-1273.0,0.00034719,2]
[423583464,1780249857000,-220.0,0.000347,30]
[423583456,1780249857000,-169.0,0.00034676,30]
[423583466,1780249857000,-444.0,0.000347,30]
[423583465,1780249857000,-1199.0,0.000347,30]
[423583478,1780249857000,-151.0,0.000349,7]
[423583487,1780249857000,-518.696371,0.000349,7]
[423583480,1780249857000,-1406.279124,0.000349,7]
[423583476,1780249857000,-305.6,0.000349,120]
[423583479,1780249857000,-1406.279124,0.000349,7]
[423583473,1780249857000,-1500.0,0.00034795,2]
[423583472,1780249857000,-932.0,0.00034719,2]
[423583477,1780249857000,-1042433.86195223,0.000349,3]
[423583488,1780249857000,-518.696371,0.000349,7]
[423583471,1780249857000,-525.0,0.00034719,2]
[423583468,1780249857000,-3550.0,0.00034719,2]
[423583467,1780249857000,-287.0,0.000347,30]
[423583540,1780249858000,-593.30220303,0.00035,120]
[423583558,1780249858000,-300.0,0.00035,120]
[423583541,1780249858000,-1175.6212355,0.00035,120]
[423583542,1780249858000,-1264.05597453,0.00035,120]
[423583538,1780249858000,-1337.77877988,0.00035,120]
[423583548,1780249858000,-797.16641382,0.00035,120]
[423583549,1780249858000,-795.09577663,0.00035,120]
[423583550,1780249858000,-455.73956405,0.00035,120]
[423583551,1780249858000,-1441.20733338,0.00035,120]
[423583555,1780249858000,-1365.80933033,0.00035,120]
[423583553,1780249858000,-3333.57105101,0.00035,120]
[423583545,1780249858000,-1274.77062071,0.00035,120]
[423583559,1780249858000,-1411.5664408,0.00035,120]
[423583552,1780249858000,-663.06495644,0.00035,120]
[423583556,1780249858000,-831.62648668,0.00035,120]
[423583557,1780249858000,-2777.03592018,0.00035,120]
[423583560,1780249858000,-555.0,0.00035,10]
[423583572,1780249858000,-500.0,0.00035361,2]
[423583563,1780249858000,-2000.0,0.00035,7]
[423583561,1780249858000,-1000.0,0.00035,10]
[423583571,1780249858000,-9879.42828868,0.00035359,2]
[423583569,1780249858000,-2509.38,0.0003522,120]
[423583570,1780249858000,-157.99575143,0.00035264,2]
[423583544,1780249858000,-922.9385503,0.00035,120]
[423583554,1780249858000,-1256.56110989,0.00035,120]
[423583547,1780249858000,-703.41061854,0.00035,120]
[423583525,1780249858000,-1000.0,0.00035,14]
[423583539,1780249858000,-689.86263822,0.00035,120]
[423583565,1780249858000,-656.0,0.00035147,10]
[423583515,1780249858000,-1731.622793,0.000349,7]
[423583518,1780249858000,-151.0,0.000349,7]
[423583519,1780249858000,-151.0,0.000349,7]
[423583516,1780249858000,-1731.622793,0.000349,7]
[423583517,1780249858000,-151.0,0.000349,7]
[423583514,1780249858000,-1731.622793,0.000349,7]
[423583521,1780249858000,-350.0,0.00034931,5]
[423583520,1780249858000,-168.51463,0.000349,7]
[423583522,1780249858000,-152.0,0.00034957,6]
[423583524,1780249858000,-171.38978409,0.00035,120]
[423583543,1780249858000,-1895.06952573,0.00035,120]
[423583523,1780249858000,-1000.0,0.00034999,2]
[423583528,1780249858000,-6652.45780614,0.00035,7]
[423583529,1780249858000,-199.0,0.00035,30]
[423583531,1780249858000,-251.75313033,0.00035,7]
[423583535,1780249858000,-500.0,0.00035,120]
[423583526,1780249858000,-1000.0,0.00035,30]
[423583530,1780249858000,-3326.22890307,0.00035,7]
[423583534,1780249858000,-158.0,0.00035,3]
[423583532,1780249858000,-389.0,0.00035,120]
[423583533,1780249858000,-245.82,0.00035,2]
[423583536,1780249858000,-1209.95481554,0.00035,120]
[423583537,1780249858000,-1246.78651759,0.00035,120]
[423583527,1780249858000,-1954.1431546,0.00035,2]
[423583562,1780249858000,-679.0,0.00035,120]
[423583546,1780249858000,-2748.93620486,0.00035,120]
[423583564,1780249858000,-387.26,0.0003513,69]
[423583599,1780249858000,-578.77492127,0.00035459,2]
[423583606,1780249858000,-485.1231417,0.00035459,2]
[423583609,1780249858000,-300.0,0.00035459,2]
[423583604,1780249858000,-300.0,0.00035459,2]
[423583600,1780249858000,-452.85549676,0.00035459,2]
[423583603,1780249858000,-300.0,0.00035459,2]
[423583597,1780249858000,-300.0,0.00035459,2]
[423583605,1780249858000,-300.0,0.00035459,2]
[423583602,1780249858000,-300.0,0.00035459,2]
[423583607,1780249858000,-310.47818433,0.00035459,2]
[423583601,1780249858000,-300.0,0.00035459,2]
[423583608,1780249858000,-300.0,0.00035459,2]
[423583620,1780249858000,-300.0,0.00035459,2]
[423583613,1780249858000,-300.0,0.00035459,2]
[423583614,1780249858000,-502.97846979,0.00035459,2]
[423583621,1780249858000,-474.78235197,0.00035459,2]
[423583611,1780249858000,-300.0,0.00035459,2]
[423583622,1780249858000,-493.6821066,0.00035459,2]
[423583612,1780249858000,-1097.08871065,0.00035459,2]
[423583610,1780249858000,-300.0,0.00035459,2]
[423583617,1780249858000,-300.0,0.00035459,2]
[423583615,1780249858000,-300.0,0.00035459,2]
[423583619,1780249858000,-300.0,0.00035459,2]
[423583568,1780249858000,-547.38,0.000352,30]
[423583616,1780249858000,-300.0,0.00035459,2]
[423583598,1780249858000,-1636.24753201,0.00035459,2]
[423583618,1780249858000,-300.0,0.00035459,2]
[423583589,1780249858000,-250.0,0.00035417,7]
[423583590,1780249858000,-3522.28655553,0.00035459,31]
[423583567,1780249858000,-395.93,0.00035183,2]
[423583574,1780249858000,-500.0,0.00035361,2]
[423583584,1780249858000,-500.0,0.00035361,2]
[423583573,1780249858000,-500.0,0.00035361,2]
[423583580,1780249858000,-500.0,0.00035361,2]
[423583582,1780249858000,-923.1,0.00035361,2]
[423583581,1780249858000,-500.0,0.00035361,2]
[423583575,1780249858000,-500.0,0.00035361,2]
[423583583,1780249858000,-500.0,0.00035361,2]
[423583578,1780249858000,-500.0,0.00035361,2]
[423583577,1780249858000,-500.0,0.00035361,2]
[423583566,1780249858000,-574.86,0.00035173,2]
[423583579,1780249858000,-500.0,0.00035361,2]
[423583576,1780249858000,-500.0,0.00035361,2]
[423583593,1780249858000,-300.0,0.00035459,2]
[423583586,1780249858000,-869.24,0.00035361,2]
[423583587,1780249858000,-947.69,0.00035361,2]
[423583595,1780249858000,-300.0,0.00035459,2]
[423583588,1780249858000,-1676.35,0.00035393,2]
[423583623,1780249858000,-300.0,0.00035459,2]
[423583585,1780249858000,-500.0,0.00035361,2]
[423583591,1780249858000,-300.0,0.00035459,2]
[423583596,1780249858000,-300.0,0.00035459,2]
[423583594,1780249858000,-300.0,0.00035459,2]
[423583592,1780249858000,-300.0,0.00035459,2]
[423583650,1780249859000,-1800.99236666,0.00035459,2]
[423583660,1780249859000,-300.0,0.00035459,2]
[423583647,1780249859000,-300.0,0.00035459,2]
[423583649,1780249859000,-950.98229606,0.00035459,2]
[423583658,1780249859000,-300.0,0.00035459,2]
[423583653,1780249859000,-1149.55667962,0.00035459,2]
[423583655,1780249859000,-300.0,0.00035459,2]
[423583652,1780249859000,-381.65200698,0.00035459,2]
[423583654,1780249859000,-310.22777036,0.00035459,2]
[423583648,1780249859000,-866.17918798,0.00035459,2]
[423583661,1780249859000,-300.0,0.00035459,2]
[423583672,1780249859000,-310.47818435,0.00035459,2]
[423583659,1780249859000,-595.17101649,0.00035459,2]
[423583671,1780249859000,-485.1231417,0.00035459,2]
[423583669,1780249859000,-469.41225536,0.00035459,2]
[423583668,1780249859000,-300.0,0.00035459,2]
[423583667,1780249859000,-300.0,0.00035459,2]
[423583663,1780249859000,-300.0,0.00035459,2]
[423583664,1780249859000,-578.77492127,0.00035459,2]
[423583665,1780249859000,-452.85549676,0.00035459,2]
[423583657,1780249859000,-339.42739188,0.00035459,2]
[423583662,1780249859000,-464.81458028,0.00035459,2]
[423583670,1780249859000,-300.0,0.00035459,2]
[423583651,1780249859000,-408.83050056,0.00035459,2]
[423583635,1780249859000,-599.99999999,0.00035459,2]
[423583644,1780249859000,-344.67640552,0.00035459,2]
[423583666,1780249859000,-300.0,0.00035459,2]
[423583626,1780249859000,-300.0,0.00035459,2]
[423583624,1780249859000,-300.0,0.00035459,2]
[423583625,1780249859000,-300.0,0.00035459,2]
[423583630,1780249859000,-535.07957553,0.00035459,2]
[423583634,1780249859000,-302.42365621,0.00035459,2]
[423583632,1780249859000,-727.5157961,0.00035459,2]
[423583633,1780249859000,-300.0,0.00035459,2]
[423583631,1780249859000,-1069.16901834,0.00035459,2]
[423583629,1780249859000,-403.31610524,0.00035459,2]
[423583656,1780249859000,-1636.24753201,0.00035459,2]
[423583627,1780249859000,-605.70713704,0.00035459,2]
[423583640,1780249859000,-300.0,0.00035459,2]
[423583641,1780249859000,-300.0,0.00035459,2]
[423583637,1780249859000,-300.0,0.00035459,2]
[423583646,1780249859000,-300.0,0.00035459,2]
[423583643,1780249859000,-300.0,0.00035459,2]
[423583639,1780249859000,-300.0,0.00035459,2]
[423583636,1780249859000,-301.20088581,0.00035459,2]
[423583645,1780249859000,-527.95548279,0.00035459,2]
[423583638,1780249859000,-300.0,0.00035459,2]
[423583642,1780249859000,-1264.80678045,0.00035459,2]
[423583628,1780249859000,-300.0,0.00035459,2]
[423583675,1780249859000,-300.0,0.00035459,2]
[423583674,1780249859000,-300.0,0.00035459,2]
[423583714,1780249859000,-300.0,0.00035459,2]
[423583704,1780249859000,-300.0,0.00035459,2]
[423583707,1780249859000,-599.99999999,0.00035459,2]
[423583702,1780249859000,-300.0,0.00035459,2]
[423583712,1780249859000,-1149.55667962,0.00035459,2]
[423583710,1780249859000,-950.98229606,0.00035459,2]
[423583706,1780249859000,-527.95548279,0.00035459,2]
[423583703,1780249859000,-1264.80678045,0.00035459,2]
[423583709,1780249859000,-300.0,0.00035459,2]
[423583711,1780249859000,-1800.99236666,0.00035459,2]
[423583708,1780249859000,-866.17918798,0.00035459,2]
[423583701,1780249859000,-521.18156941,0.00035459,2]
[423583725,1780249859000,-485.1231417,0.00035459,2]
[423583724,1780249859000,-300.0,0.00035459,2]
[423583721,1780249859000,-300.0,0.00035459,2]
[423583718,1780249859000,-300.0,0.00035459,2]
[423583715,1780249859000,-595.17101649,0.00035459,2]
[423583722,1780249859000,-300.0,0.00035459,2]
[423583717,1780249859000,-464.81458028,0.00035459,2]
[423583716,1780249859000,-300.0,0.00035459,2]
[423583723,1780249859000,-300.0,0.00035459,2]
[423583719,1780249859000,-578.77492127,0.00035459,2]
[423583681,1780249859000,-501.50034473,0.00035459,2]
[423583713,1780249859000,-310.22777036,0.00035459,2]
[423583705,1780249859000,-344.67640552,0.00035459,2]
[423583720,1780249859000,-452.85549676,0.00035459,2]
[423583700,1780249859000,-300.0,0.00035459,2]
[423583677,1780249859000,-1097.08871065,0.00035459,2]
[423583699,1780249859000,-300.0,0.00035459,2]
[423583676,1780249859000,-300.0,0.00035459,2]
[423583683,1780249859000,-300.0,0.00035459,2]
[423583673,1780249859000,-300.0,0.00035459,2]
[423583679,1780249859000,-300.0,0.00035459,2]
[423583678,1780249859000,-300.0,0.00035459,2]
[423583682,1780249859000,-300.0,0.00035459,2]
[423583685,1780249859000,-339.77542054,0.00035459,2]
[423583696,1780249859000,-300.0,0.00035459,2]
[423583697,1780249859000,-301.20088581,0.00035459,2]
[423583680,1780249859000,-300.0,0.00035459,2]
[423583684,1780249859000,-493.6821066,0.00035459,2]
[423583694,1780249859000,-300.0,0.00035459,2]
[423583689,1780249859000,-605.70713704,0.00035459,2]
[423583686,1780249859000,-435.26198465,0.00035459,2]
[423583692,1780249859000,-1069.16901834,0.00035459,2]
[423583691,1780249859000,-403.31610524,0.00035459,2]
[423583690,1780249859000,-300.0,0.00035459,2]
[423583698,1780249859000,-300.0,0.00035459,2]
[423583687,1780249859000,-300.0,0.00035459,2]
[423583693,1780249859000,-535.07957553,0.00035459,2]
[423583688,1780249859000,-300.0,0.00035459,2]
[423583695,1780249859000,-302.42365621,0.00035459,2]
[423583761,1780249860000,-950.98229606,0.00035459,2]
[423583748,1780249860000,-302.42365621,0.00035459,2]
[423583769,1780249860000,-300.0,0.00035459,2]
[423583767,1780249860000,-300.0,0.00035459,2]
[423583764,1780249860000,-310.22777036,0.00035459,2]
[423583765,1780249860000,-300.0,0.00035459,2]
[423583757,1780249860000,-527.9554828,0.00035459,2]
[423583762,1780249860000,-1800.99236666,0.00035459,2]
[423583758,1780249860000,-300.0,0.00035459,2]
[423583752,1780249860000,-300.0,0.00035459,2]
[423583763,1780249860000,-1149.55667962,0.00035459,2]
[423583760,1780249860000,-866.17918798,0.00035459,2]
[423583770,1780249860000,-578.77492127,0.00035459,2]
[423583781,1780249860000,-1097.08871067,0.00035459,2]
[423583766,1780249860000,-595.17101649,0.00035459,2]
[423583772,1780249860000,-300.0,0.00035459,2]
[423583771,1780249860000,-452.85549676,0.00035459,2]
[423583775,1780249860000,-300.0,0.00035459,2]
[423583774,1780249860000,-300.0,0.00035459,2]
[423583776,1780249860000,-485.1231417,0.00035459,2]
[423583773,1780249860000,-300.0,0.00035459,2]
[423583779,1780249860000,-300.0,0.00035459,2]
[423583780,1780249860000,-300.0,0.00035459,2]
[423583777,1780249860000,-310.47818435,0.00035459,2]
[423583778,1780249860000,-300.0,0.00035459,2]
[423583753,1780249860000,-300.0,0.00035459,2]
[423583768,1780249860000,-464.81458028,0.00035459,2]
[423583783,1780249860000,-300.0,0.00035459,2]
[423583730,1780249860000,-363.74520454,0.00035459,2]
[423583754,1780249860000,-300.0,0.00035459,2]
[423583726,1780249860000,-310.47818433,0.00035459,2]
[423583728,1780249860000,-300.0,0.00035459,2]
[423583729,1780249860000,-300.0,0.00035459,2]
[423583731,1780249860000,-1097.08871067,0.00035459,2]
[423583727,1780249860000,-300.0,0.00035459,2]
[423583735,1780249860000,-300.0,0.00035459,2]
[423583733,1780249860000,-300.0,0.00035459,2]
[423583734,1780249860000,-481.99807772,0.00035459,2]
[423583736,1780249860000,-300.0,0.00035459,2]
[423583732,1780249860000,-300.0,0.00035459,2]
[423583737,1780249860000,-493.6821066,0.00035459,2]
[423583739,1780249860000,-300.0,0.00035459,2]
[423583740,1780249860000,-605.70713704,0.00035459,2]
[423583742,1780249860000,-300.0,0.00035459,2]
[423583741,1780249860000,-383.09787666,0.00035459,2]
[423583738,1780249860000,-300.0,0.00035459,2]
[423583745,1780249860000,-535.07957553,0.00035459,2]
[423583744,1780249860000,-1069.16901834,0.00035459,2]
[423583743,1780249860000,-403.31610524,0.00035459,2]
[423583747,1780249860000,-300.0,0.00035459,2]
[423583746,1780249860000,-727.5157961,0.00035459,2]
[423583749,1780249860000,-301.20088581,0.00035459,2]
[423583759,1780249860000,-300.0,0.00035459,2]
[423583750,1780249860000,-300.0,0.00035459,2]
[423583751,1780249860000,-300.0,0.00035459,2]
[423583755,1780249860000,-1264.80678045,0.00035459,2]
[423583793,1780249860000,-727.5157961,0.00035459,2]
[423583756,1780249860000,-344.67640552,0.00035459,2]
[423583792,1780249860000,-1069.16901834,0.00035459,2]
[423583812,1780249860000,-300.0,0.00035459,2]
[423583814,1780249860000,-300.0,0.00035459,2]
[423583820,1780249860000,-300.0,0.00035459,2]
[423583824,1780249860000,-310.47818433,0.00035459,2]
[423583822,1780249860000,-300.0,0.00035459,2]
[423583828,1780249860000,-1097.08871067,0.00035459,2]
[423583829,1780249860000,-300.0,0.00035459,2]
[423583830,1780249860000,-300.0,0.00035459,2]
[423583819,1780249860000,-300.0,0.00035459,2]
[423583826,1780249860000,-300.0,0.00035459,2]
[423583821,1780249860000,-300.0,0.00035459,2]
[423583823,1780249860000,-485.1231417,0.00035459,2]
[423583817,1780249860000,-578.77492127,0.00035459,2]
[423583825,1780249860000,-300.0,0.00035459,2]
[423583832,1780249860000,-300.0,0.00035459,2]
[423583842,1780249860000,-442.89763408,0.00035459,2]
[423583834,1780249860000,-300.00000001,0.00035459,2]
[423583838,1780249860000,-403.31610524,0.00035459,2]
[423583833,1780249860000,-493.6821066,0.00035459,2]
[423583831,1780249860000,-300.0,0.00035459,2]
[423583836,1780249860000,-605.70713704,0.00035459,2]
[423583841,1780249860000,-727.57003954,0.00035459,2]
[423583835,1780249860000,-300.0,0.00035459,2]
[423583839,1780249860000,-1069.16901834,0.00035459,2]
[423583840,1780249860000,-535.11946239,0.00035459,2]
[423583791,1780249860000,-403.31610524,0.00035459,2]
[423583827,1780249860000,-300.0,0.00035459,2]
[423583813,1780249860000,-595.17101649,0.00035459,2]
[423583837,1780249860000,-300.0,0.00035459,2]
[423583808,1780249860000,-950.98229606,0.00035459,2]
[423583789,1780249860000,-605.70713704,0.00035459,2]
[423583810,1780249860000,-1149.55667962,0.00035459,2]
[423583787,1780249860000,-300.0,0.00035459,2]
[423583788,1780249860000,-300.0,0.00035459,2]
[423583784,1780249860000,-300.0,0.00035459,2]
[423583786,1780249860000,-493.6821066,0.00035459,2]
[423583782,1780249860000,-300.0,0.00035459,2]
[423583790,1780249860000,-300.0,0.00035459,2]
[423583795,1780249860000,-300.0,0.00035459,2]
[423583805,1780249860000,-307.95797613,0.00035459,2]
[423583794,1780249860000,-300.0,0.00035459,2]
[423583797,1780249860000,-301.20088581,0.00035459,2]
[423583801,1780249860000,-300.0,0.00035459,2]
[423583785,1780249860000,-300.0,0.00035459,2]
[423583804,1780249860000,-527.95548278,0.00035459,2]
[423583796,1780249860000,-302.42365621,0.00035459,2]
[423583806,1780249860000,-300.0,0.00035459,2]
[423583818,1780249860000,-452.85549676,0.00035459,2]
[423583816,1780249860000,-300.0,0.00035459,2]
[423583807,1780249860000,-866.17918798,0.00035459,2]
[423583809,1780249860000,-1800.99236666,0.00035459,2]
[423583815,1780249860000,-464.81458028,0.00035459,2]
[423583802,1780249860000,-1264.80678045,0.00035459,2]
[423583800,1780249860000,-300.0,0.00035459,2]
[423583799,1780249860000,-300.0,0.00035459,2]
[423583803,1780249860000,-344.67640552,0.00035459,2]
[423583798,1780249860000,-300.0,0.00035459,2]
[423583811,1780249860000,-310.22777036,0.00035459,2]
[423583865,1780249861000,-578.77492127,0.00035459,2]
[423583860,1780249861000,-300.0,0.00035459,2]
[423583871,1780249861000,-485.1231417,0.00035459,2]
[423583873,1780249861000,-379.21810605,0.00035459,2]
[423583872,1780249861000,-310.47818435,0.00035459,2]
[423583874,1780249861000,-300.0,0.00035459,2]
[423583870,1780249861000,-300.0,0.00035459,2]
[423583878,1780249861000,-582.10413044,0.00035459,2]
[423583880,1780249861000,-300.0,0.00035459,2]
[423583876,1780249861000,-1097.08871063,0.00035459,2]
[423583875,1780249861000,-300.0,0.00035459,2]
[423583877,1780249861000,-300.0,0.00035459,2]
[423583883,1780249861000,-605.70713704,0.00035459,2]
[423583881,1780249861000,-493.6821066,0.00035459,2]
[423583884,1780249861000,-300.0,0.00035459,2]
[423583879,1780249861000,-300.0,0.00035459,2]
[423583863,1780249861000,-464.81458028,0.00035459,2]
[423583882,1780249861000,-300.0,0.00035459,2]
[423583869,1780249861000,-300.0,0.00035459,2]
[423583862,1780249861000,-300.0,0.00035459,2]
[423583845,1780249861000,-300.0,0.00035459,2]
[423583858,1780249861000,-310.22777041,0.00035459,2]
[423583887,1780249861000,-535.11946239,0.00035459,2]
[423583843,1780249861000,-302.42365621,0.00035459,2]
[423583852,1780249861000,-300.0,0.00035459,2]
[423583851,1780249861000,-527.9554828,0.00035459,2]
[423583848,1780249861000,-300.0,0.00035459,2]
[423583844,1780249861000,-301.20088581,0.00035459,2]
[423583854,1780249861000,-950.98229606,0.00035459,2]
[423583849,1780249861000,-1264.80678045,0.00035459,2]
[423583855,1780249861000,-1800.99236666,0.00035459,2]
[423583850,1780249861000,-344.67640552,0.00035459,2]
[423583846,1780249861000,-300.0,0.00035459,2]
[423583847,1780249861000,-300.0,0.00035459,2]
[423583868,1780249861000,-300.0,0.00035459,2]
[423583857,1780249861000,-1149.55667962,0.00035459,2]
[423583866,1780249861000,-452.85549676,0.00035459,2]
[423583864,1780249861000,-300.0,0.00035459,2]
[423583859,1780249861000,-1636.24753201,0.00035459,2]
[423583867,1780249861000,-300.0,0.00035459,2]
[423583856,1780249861000,-300.0,0.00035459,2]
[423583861,1780249861000,-595.17101649,0.00035459,2]
[423583885,1780249861000,-403.31610524,0.00035459,2]